[Event "Titled Tuesday Blitz November 15 Late 2022"]
[White "Silva Lucena, Cristian"]
[Black "Figorito, Nick"]
[WhiteFideId "2232588"]
[BlackFideId "30923689"]
[WhiteElo "2223"]
[BlackElo "2356"]
[Result "1/2-1/2"]
[Round "11"]
[TimeControl "180+1"]
[Date "2022.11.16"]
[WhiteClock "0:00:09"]
[BlackClock "0:00:19"]

1. Nf3 {[%clk 0:02:50]}  Nf6 {[%clk 0:03:00]} 2. c4 {[%clk 0:02:48]}  g6 {[%clk 0:03:00]} 3. b3 {[%clk 0:02:46]}  Bg7 {[%clk 0:03:00]} 4. Bb2 {[%clk 0:02:45]}  O-O {[%clk 0:03:01]} 5. g3 {[%clk 0:02:45]}  c5 {[%clk 0:03:01]} 6. Bg2 {[%clk 0:02:45]}  Nc6 {[%clk 0:03:02]} 7. O-O {[%clk 0:02:45]}  b6 {[%clk 0:03:02]} 8. d4 {[%clk 0:02:46]}  cxd4 {[%clk 0:03:02]} 9. Nxd4 {[%clk 0:02:47]}  Bb7 {[%clk 0:03:02]} 10. Nc3 {[%clk 0:02:44]}  Rc8 {[%clk 0:02:45]} 11. Qd2 {[%clk 0:02:37]}  Ba8 {[%clk 0:02:39]} 12. Nc2 {[%clk 0:02:35]}  d6 {[%clk 0:02:31]} 13. Rad1 {[%clk 0:02:34]}  Qc7 {[%clk 0:02:28]} 14. Rc1 {[%clk 0:02:31]}  Qb8 {[%clk 0:02:25]} 15. Ne3 {[%clk 0:02:26]}  Bb7 {[%clk 0:02:24]} 16. Ned5 {[%clk 0:02:25]}  Rfe8 {[%clk 0:02:22]} 17. Nxf6+ {[%clk 0:02:19]}  Bxf6 {[%clk 0:02:22]} 18. Nd5 {[%clk 0:02:20]}  Bxb2 {[%clk 0:02:20]} 19. Qxb2 {[%clk 0:02:21]}  Ne5 {[%clk 0:02:10]} 20. Rfd1 {[%clk 0:02:20]}  Bxd5 {[%clk 0:02:10]} 21. Bxd5 {[%clk 0:02:21]}  Nd7 {[%clk 0:02:02]} 22. a4 {[%clk 0:02:19]}  Nf6 {[%clk 0:02:02]} 23. Bg2 {[%clk 0:02:19]}  a5 {[%clk 0:01:58]} 24. Bh3 {[%clk 0:02:20]}  Rcd8 {[%clk 0:01:56]} 25. Rd3 {[%clk 0:02:18]}  Qc7 {[%clk 0:01:55]} 26. Rcd1 {[%clk 0:02:17]}  Qc5 {[%clk 0:01:55]} 27. Bg2 {[%clk 0:02:12]}  h5 {[%clk 0:01:41]} 28. Qd2 {[%clk 0:02:10]}  Kh7 {[%clk 0:01:31]} 29. Qe3 {[%clk 0:02:09]}  Qxe3 {[%clk 0:01:30]} 30. Rxe3 {[%clk 0:02:10]}  Kg7 {[%clk 0:01:26]} 31. Bc6 {[%clk 0:02:10]}  Ng4 {[%clk 0:01:10]} 32. Re4 {[%clk 0:01:53]}  Nf6 {[%clk 0:01:00]} 33. Re3 {[%clk 0:01:45]}  Ng4 {[%clk 0:01:00]} 34. Rc3 {[%clk 0:01:44]}  Rh8 {[%clk 0:00:59]} 35. Rd5 {[%clk 0:01:43]}  Nf6 {[%clk 0:00:57]} 36. Rb5 {[%clk 0:01:41]}  Rb8 {[%clk 0:00:57]} 37. Re3 {[%clk 0:01:42]}  e6 {[%clk 0:00:54]} 38. Rd3 {[%clk 0:01:38]}  Rhd8 {[%clk 0:00:54]} 39. Bf3 {[%clk 0:01:36]}  Kf8 {[%clk 0:00:51]} 40. c5 {[%clk 0:01:29]}  bxc5 {[%clk 0:00:45]} 41. Rxd6 {[%clk 0:01:26]}  Rxb5 {[%clk 0:00:33]} 42. Rxd8+ {[%clk 0:01:25]}  Ke7 {[%clk 0:00:34]} 43. Rd3 {[%clk 0:01:17]}  Rb8 {[%clk 0:00:33]} 44. Kf1 {[%clk 0:01:13]}  Rd8 {[%clk 0:00:29]} 45. Rc3 {[%clk 0:01:07]}  Rc8 {[%clk 0:00:29]} 46. Ke1 {[%clk 0:01:07]}  Nd5 {[%clk 0:00:30]} 47. Rd3 {[%clk 0:00:52]}  Nb4 {[%clk 0:00:28]} 48. Rc3 {[%clk 0:00:45]}  Nd5 {[%clk 0:00:28]} 49. Rc1 {[%clk 0:00:45]}  Kd6 {[%clk 0:00:26]} 50. Kd2 {[%clk 0:00:45]}  Rb8 {[%clk 0:00:26]} 51. Kc2 {[%clk 0:00:43]}  Nb4+ {[%clk 0:00:26]} 52. Kc3 {[%clk 0:00:43]}  Nc6 {[%clk 0:00:25]} 53. Rd1+ {[%clk 0:00:42]}  Kc7 {[%clk 0:00:18]} 54. e3 {[%clk 0:00:38]}  Rd8 {[%clk 0:00:10]} 55. Rxd8 {[%clk 0:00:22]}  Nxd8 {[%clk 0:00:11]} 56. Kc4 {[%clk 0:00:21]}  Kb6 {[%clk 0:00:12]} 57. Be4 {[%clk 0:00:19]}  Nc6 {[%clk 0:00:11]} 58. f4 {[%clk 0:00:20]}  Nb4 {[%clk 0:00:11]} 59. h3 {[%clk 0:00:19]}  Na6 {[%clk 0:00:11]} 60. g4 {[%clk 0:00:18]}  hxg4 {[%clk 0:00:12]} 61. hxg4 {[%clk 0:00:18]}  Nb4 {[%clk 0:00:12]} 62. Kc3 {[%clk 0:00:12]}  Nd5+ {[%clk 0:00:11]} 63. Bxd5 {[%clk 0:00:11]}  exd5 {[%clk 0:00:12]} 64. e4 {[%clk 0:00:07]}  d4+ {[%clk 0:00:09]} 65. Kc4 {[%clk 0:00:07]}  Kc6 {[%clk 0:00:10]} 66. e5 {[%clk 0:00:07]}  Kd7 {[%clk 0:00:09]} 67. Kd3 {[%clk 0:00:06]}  Ke6 {[%clk 0:00:09]} 68. Ke4 {[%clk 0:00:07]}  Kd7 {[%clk 0:00:09]} 69. f5 {[%clk 0:00:07]}  gxf5+ {[%clk 0:00:09]} 70. gxf5 {[%clk 0:00:07]}  Ke7 {[%clk 0:00:10]} 71. Kd3 {[%clk 0:00:06]}  Kd7 {[%clk 0:00:11]} 72. Kc4 {[%clk 0:00:06]}  Kc7 {[%clk 0:00:10]} 73. Kd3 {[%clk 0:00:05]}  Kd7 {[%clk 0:00:11]} 74. Kc2 {[%clk 0:00:05]}  Ke7 {[%clk 0:00:11]} 75. Kd2 {[%clk 0:00:06]}  Kd7 {[%clk 0:00:11]} 76. Kd3 {[%clk 0:00:06]}  Ke7 {[%clk 0:00:12]} 77. Kc4 {[%clk 0:00:06]}  Kd7 {[%clk 0:00:13]} 78. Kd3 {[%clk 0:00:06]}  Ke7 {[%clk 0:00:13]} 79. Ke2 {[%clk 0:00:07]}  Kd7 {[%clk 0:00:14]} 80. Kf3 {[%clk 0:00:08]}  Ke7 {[%clk 0:00:15]} 81. Kf4 {[%clk 0:00:08]}  Kd7 {[%clk 0:00:15]} 82. Kf3 {[%clk 0:00:07]}  Ke7 {[%clk 0:00:16]} 83. Kf2 {[%clk 0:00:08]}  Kd7 {[%clk 0:00:16]} 84. Ke1 {[%clk 0:00:09]}  Ke7 {[%clk 0:00:17]} 85. Kd1 {[%clk 0:00:09]}  Kd7 {[%clk 0:00:18]} 86. Kc2 {[%clk 0:00:09]}  Ke7 {[%clk 0:00:18]} 87. Kd3 {[%clk 0:00:09]}  Kd7 {[%clk 0:00:19]} 1/2-1/2


[Site "https://www.chess.com"]

[Event "Titled Tuesday Blitz November 15 Late 2022"]
[White "Sohal, Tanraj"]
[Black "Alexikov, Alexander"]
[WhiteFideId "2608499"]
[BlackFideId "14103958"]
[WhiteElo "2200"]
[BlackElo "2222"]
[Result "1-0"]
[Round "11"]
[TimeControl "180+1"]
[Date "2022.11.16"]
[WhiteClock "0:00:26"]
[BlackClock "0:00:03"]

1. d4 {[%clk 0:02:50]}  Nf6 {[%clk 0:02:59]} 2. Nf3 {[%clk 0:02:51]}  g6 {[%clk 0:03:00]} 3. g3 {[%clk 0:02:52]}  Bg7 {[%clk 0:03:00]} 4. Bg2 {[%clk 0:02:53]}  d6 {[%clk 0:03:00]} 5. O-O {[%clk 0:02:54]}  O-O {[%clk 0:02:59]} 6. b3 {[%clk 0:02:54]}  c5 {[%clk 0:02:57]} 7. Bb2 {[%clk 0:02:54]}  cxd4 {[%clk 0:02:57]} 8. Nxd4 {[%clk 0:02:55]}  Nc6 {[%clk 0:02:56]} 9. Nxc6 {[%clk 0:02:53]}  bxc6 {[%clk 0:02:56]} 10. Bxc6 {[%clk 0:02:54]}  Rb8 {[%clk 0:02:56]} 11. Bg2 {[%clk 0:02:54]}  a5 {[%clk 0:02:56]} 12. Nd2 {[%clk 0:02:52]}  a4 {[%clk 0:02:55]} 13. Nc4 {[%clk 0:02:51]}  Ba6 {[%clk 0:02:54]} 14. Bxf6 {[%clk 0:02:41]}  Bxf6 {[%clk 0:02:52]} 15. Rb1 {[%clk 0:02:42]}  Bxc4 {[%clk 0:02:51]} 16. bxc4 {[%clk 0:02:41]}  Qc7 {[%clk 0:02:49]} 17. Qd3 {[%clk 0:02:34]}  Rfc8 {[%clk 0:02:31]} 18. Rxb8 {[%clk 0:02:32]}  Rxb8 {[%clk 0:02:29]} 19. Bd5 {[%clk 0:02:19]}  Rb2 {[%clk 0:02:09]} 20. Qa3 {[%clk 0:02:13]}  e6 {[%clk 0:01:59]} 21. Be4 {[%clk 0:02:08]}  Qxc4 {[%clk 0:01:55]} 22. Bd3 {[%clk 0:02:08]}  Qd4 {[%clk 0:01:47]} 23. c3 {[%clk 0:01:59]}  Qb6 {[%clk 0:01:38]} 24. Qxa4 {[%clk 0:01:58]}  Bxc3 {[%clk 0:01:36]} 25. Qe8+ {[%clk 0:01:58]}  Kg7 {[%clk 0:01:35]} 26. a4 {[%clk 0:01:58]}  d5 {[%clk 0:01:29]} 27. Bb5 {[%clk 0:01:51]}  Bd4 {[%clk 0:01:20]} 28. h4 {[%clk 0:01:51]}  h5 {[%clk 0:01:19]} 29. Qe7 {[%clk 0:01:43]}  Bc5 {[%clk 0:01:15]} 30. Qg5 {[%clk 0:01:40]}  Qd6 {[%clk 0:01:10]} 31. Kg2 {[%clk 0:01:36]}  Bd4 {[%clk 0:01:06]} 32. Qc1 {[%clk 0:01:34]}  Ra2 {[%clk 0:00:59]} 33. e3 {[%clk 0:01:32]}  Be5 {[%clk 0:00:57]} 34. Qc6 {[%clk 0:01:27]}  Bxg3 {[%clk 0:00:54]} 35. Qxd6 {[%clk 0:01:27]}  Bxd6 {[%clk 0:00:53]} 36. Rd1 {[%clk 0:01:28]}  Bc5 {[%clk 0:00:53]} 37. Kf3 {[%clk 0:01:27]}  Kf6 {[%clk 0:00:52]} 38. Rc1 {[%clk 0:01:28]}  Bb6 {[%clk 0:00:51]} 39. Rc8 {[%clk 0:01:28]}  Ke7 {[%clk 0:00:49]} 40. Rb8 {[%clk 0:01:27]}  Bc7 {[%clk 0:00:48]} 41. Rb7 {[%clk 0:01:28]}  Kd6 {[%clk 0:00:48]} 42. Be8 {[%clk 0:01:28]}  e5 {[%clk 0:00:46]} 43. Bxf7 {[%clk 0:01:28]}  e4+ {[%clk 0:00:46]} 44. Kg2 {[%clk 0:01:27]}  Rxa4 {[%clk 0:00:44]} 45. Bxg6 {[%clk 0:01:25]}  Ba5 {[%clk 0:00:41]} 46. Bxh5 {[%clk 0:01:20]}  Be1 {[%clk 0:00:40]} 47. Bg4 {[%clk 0:01:18]}  Ra2 {[%clk 0:00:39]} 48. Rf7 {[%clk 0:01:18]}  d4 {[%clk 0:00:34]} 49. exd4 {[%clk 0:01:17]}  Kd5 {[%clk 0:00:34]} 50. Rd7+ {[%clk 0:01:06]}  Kc6 {[%clk 0:00:34]} 51. Rf7 {[%clk 0:01:00]}  e3 {[%clk 0:00:32]} 52. Rf6+ {[%clk 0:00:49]}  Kc7 {[%clk 0:00:23]} 53. h5 {[%clk 0:00:41]}  exf2 {[%clk 0:00:16]} 54. h6 {[%clk 0:00:37]}  Bc3 {[%clk 0:00:15]} 55. h7 {[%clk 0:00:26]}  Ra8 {[%clk 0:00:03]} 56. Rf4 {[%clk 0:00:26]} 1-0


[Site "https://www.chess.com"]

[Event "Titled Tuesday Blitz November 15 Late 2022"]
[White "Sonnenschein, Philipp"]
[Black "Ardila, Oscar Humberto"]
[WhiteFideId "16250877"]
[BlackFideId "4404742"]
[WhiteElo "2225"]
[BlackElo "1959"]
[Result "1-0"]
[Round "11"]
[TimeControl "180+1"]
[Date "2022.11.16"]
[WhiteClock "0:00:10"]
[BlackClock "0:00:17"]

1. e4 {[%clk 0:02:58]}  e5 {[%clk 0:02:57]} 2. Nf3 {[%clk 0:02:58]}  Nf6 {[%clk 0:02:57]} 3. d4 {[%clk 0:02:55]}  Nxe4 {[%clk 0:02:57]} 4. Bd3 {[%clk 0:02:52]}  d5 {[%clk 0:02:56]} 5. Nxe5 {[%clk 0:02:49]}  Nf6 {[%clk 0:02:56]} 6. O-O {[%clk 0:02:48]}  Be7 {[%clk 0:02:57]} 7. Bg5 {[%clk 0:02:45]}  O-O {[%clk 0:02:57]} 8. Nd2 {[%clk 0:02:44]}  Nbd7 {[%clk 0:02:56]} 9. f4 {[%clk 0:02:37]}  h6 {[%clk 0:02:50]} 10. Bh4 {[%clk 0:02:37]}  Re8 {[%clk 0:02:50]} 11. Ndf3 {[%clk 0:02:33]}  Nf8 {[%clk 0:02:48]} 12. Kh1 {[%clk 0:02:21]}  Ne4 {[%clk 0:02:48]} 13. Bxe7 {[%clk 0:02:17]}  Qxe7 {[%clk 0:02:48]} 14. c4 {[%clk 0:02:14]}  c6 {[%clk 0:02:44]} 15. cxd5 {[%clk 0:02:02]}  cxd5 {[%clk 0:02:43]} 16. Qb3 {[%clk 0:02:01]}  Bf5 {[%clk 0:02:19]} 17. Bb5 {[%clk 0:01:58]}  Red8 {[%clk 0:02:12]} 18. Rac1 {[%clk 0:01:48]}  f6 {[%clk 0:02:10]} 19. Nd3 {[%clk 0:01:47]}  a6 {[%clk 0:02:03]} 20. Nb4 {[%clk 0:01:36]}  Be6 {[%clk 0:01:39]} 21. Bd3 {[%clk 0:01:32]}  f5 {[%clk 0:01:34]} 22. Qd1 {[%clk 0:01:17]}  Kh7 {[%clk 0:01:33]} 23. Nc2 {[%clk 0:01:11]}  Ng6 {[%clk 0:01:32]} 24. Ne5 {[%clk 0:01:10]}  Rac8 {[%clk 0:01:29]} 25. Ne3 {[%clk 0:01:07]}  Rxc1 {[%clk 0:01:24]} 26. Qxc1 {[%clk 0:01:08]}  Rc8 {[%clk 0:01:24]} 27. Qe1 {[%clk 0:01:04]}  Qd6 {[%clk 0:01:01]} 28. Nxg6 {[%clk 0:01:03]}  Kxg6 {[%clk 0:01:00]} 29. g4 {[%clk 0:01:02]}  Qd7 {[%clk 0:00:47]} 30. Qh4 {[%clk 0:00:56]}  Kh7 {[%clk 0:00:45]} 31. gxf5 {[%clk 0:00:52]}  Bxf5 {[%clk 0:00:45]} 32. Nxf5 {[%clk 0:00:41]}  Qxf5 {[%clk 0:00:45]} 33. Qe7 {[%clk 0:00:36]}  Rf8 {[%clk 0:00:38]} 34. Qe5 {[%clk 0:00:30]}  Ng3+ {[%clk 0:00:22]} 35. Kg2 {[%clk 0:00:20]}  Qxd3 {[%clk 0:00:23]} 36. hxg3 {[%clk 0:00:20]}  Qd2+ {[%clk 0:00:23]} 37. Rf2 {[%clk 0:00:20]}  Qd3 {[%clk 0:00:23]} 38. Qxd5 {[%clk 0:00:20]}  Kh8 {[%clk 0:00:21]} 39. Qxb7 {[%clk 0:00:19]}  Qxd4 {[%clk 0:00:21]} 40. Qxa6 {[%clk 0:00:17]}  Qe4+ {[%clk 0:00:21]} 41. Kh2 {[%clk 0:00:17]}  h5 {[%clk 0:00:20]} 42. Qe2 {[%clk 0:00:15]}  Qf5 {[%clk 0:00:19]} 43. Kg2 {[%clk 0:00:11]}  Rd8 {[%clk 0:00:18]} 44. Qe5 {[%clk 0:00:11]}  Qg4 {[%clk 0:00:18]} 45. a4 {[%clk 0:00:08]}  h4 {[%clk 0:00:17]} 46. Qg5 {[%clk 0:00:05]}  h3+ {[%clk 0:00:17]} 47. Kh2 {[%clk 0:00:05]}  Qxg5 {[%clk 0:00:16]} 48. fxg5 {[%clk 0:00:05]}  Rd5 {[%clk 0:00:14]} 49. Kxh3 {[%clk 0:00:05]}  Rxg5 {[%clk 0:00:14]} 50. b4 {[%clk 0:00:05]}  Rd5 {[%clk 0:00:14]} 51. Rb2 {[%clk 0:00:04]}  Kh7 {[%clk 0:00:12]} 52. b5 {[%clk 0:00:04]}  Rd1 {[%clk 0:00:13]} 53. b6 {[%clk 0:00:05]}  Rh1+ {[%clk 0:00:14]} 54. Kg2 {[%clk 0:00:05]}  Rh6 {[%clk 0:00:14]} 55. b7 {[%clk 0:00:05]}  Rb6 {[%clk 0:00:14]} 56. b8=Q {[%clk 0:00:06]}  Rxb8 {[%clk 0:00:14]} 57. Rxb8 {[%clk 0:00:07]}  Kg6 {[%clk 0:00:14]} 58. a5 {[%clk 0:00:07]}  Kf6 {[%clk 0:00:15]} 59. a6 {[%clk 0:00:08]}  g5 {[%clk 0:00:16]} 60. a7 {[%clk 0:00:09]}  g4 {[%clk 0:00:17]} 61. a8=Q {[%clk 0:00:10]} 1-0


[Site "https://www.chess.com"]

[Event "Titled Tuesday Blitz November 15 Late 2022"]
[White "Stanisz, Patryk"]
[Black "Sariego Figueredo, Wilfredo"]
[WhiteFideId "1123106"]
[BlackFideId "3500080"]
[WhiteElo "2069"]
[BlackElo "2309"]
[Result "1-0"]
[Round "11"]
[TimeControl "180+1"]
[Date "2022.11.16"]
[WhiteClock "0:00:50"]
[BlackClock "0:01:32"]

1. d4 {[%clk 0:03:00]}  d5 {[%clk 0:02:59]} 2. c4 {[%clk 0:02:59]}  c6 {[%clk 0:02:59]} 3. Nf3 {[%clk 0:02:58]}  a6 {[%clk 0:02:59]} 4. cxd5 {[%clk 0:02:57]}  cxd5 {[%clk 0:02:59]} 5. a4 {[%clk 0:02:58]}  Nf6 {[%clk 0:02:58]} 6. Nc3 {[%clk 0:02:57]}  Bf5 {[%clk 0:02:53]} 7. Qb3 {[%clk 0:02:56]}  Qd7 {[%clk 0:02:52]} 8. Ne5 {[%clk 0:02:54]}  Qc7 {[%clk 0:02:48]} 9. Bf4 {[%clk 0:02:39]}  Rg8 {[%clk 0:02:14]} 10. Rc1 {[%clk 0:02:30]}  Nc6 {[%clk 0:02:09]} 11. g3 {[%clk 0:01:52]}  Qc8 {[%clk 0:01:55]} 12. Nxd5 {[%clk 0:01:36]}  Be4 {[%clk 0:01:41]} 13. Nxf6+ {[%clk 0:01:11]}  exf6 {[%clk 0:01:42]} 14. Qxf7+ {[%clk 0:01:07]}  Kd8 {[%clk 0:01:39]} 15. Qxg8 {[%clk 0:00:59]}  fxe5 {[%clk 0:01:39]} 16. Qxf8+ {[%clk 0:00:55]}  Kc7 {[%clk 0:01:33]} 17. Bxe5+ {[%clk 0:00:52]}  Kb6 {[%clk 0:01:32]} 18. Qc5# {[%clk 0:00:50]} 1-0


[Site "https://www.chess.com"]

[Event "Titled Tuesday Blitz November 15 Late 2022"]
[White "Storey, Charles H"]
[Black "Gasparyan, David"]
[WhiteFideId "406686"]
[BlackFideId "13311980"]
[WhiteElo "2252"]
[BlackElo "2323"]
[Result "1/2-1/2"]
[Round "11"]
[TimeControl "180+1"]
[Date "2022.11.16"]
[WhiteClock "0:00:07"]
[BlackClock "0:00:15"]

1. c4 {[%clk 0:03:00]}  c5 {[%clk 0:02:59]} 2. Nf3 {[%clk 0:02:55]}  Nf6 {[%clk 0:02:59]} 3. d4 {[%clk 0:02:55]}  cxd4 {[%clk 0:02:59]} 4. Nxd4 {[%clk 0:02:56]}  Nc6 {[%clk 0:02:59]} 5. Nc3 {[%clk 0:02:54]}  d5 {[%clk 0:02:56]} 6. cxd5 {[%clk 0:02:46]}  Nxd5 {[%clk 0:02:55]} 7. Nxc6 {[%clk 0:02:45]}  bxc6 {[%clk 0:02:55]} 8. e4 {[%clk 0:02:44]}  Nxc3 {[%clk 0:02:55]} 9. Qxd8+ {[%clk 0:02:44]}  Kxd8 {[%clk 0:02:56]} 10. bxc3 {[%clk 0:02:44]}  e5 {[%clk 0:02:49]} 11. Be3 {[%clk 0:02:34]}  Bd6 {[%clk 0:02:47]} 12. Bc4 {[%clk 0:02:33]}  Ke7 {[%clk 0:02:46]} 13. Rb1 {[%clk 0:02:09]}  Bd7 {[%clk 0:02:38]} 14. Kd2 {[%clk 0:01:57]}  a5 {[%clk 0:02:31]} 15. Rb7 {[%clk 0:01:54]}  Rhb8 {[%clk 0:02:26]} 16. Rhb1 {[%clk 0:01:53]}  Rxb7 {[%clk 0:02:25]} 17. Rxb7 {[%clk 0:01:54]}  Rb8 {[%clk 0:02:20]} 18. Rxb8 {[%clk 0:01:42]}  Bxb8 {[%clk 0:02:21]} 19. Bb6 {[%clk 0:01:42]}  a4 {[%clk 0:02:20]} 20. Bd3 {[%clk 0:01:29]}  Be6 {[%clk 0:02:17]} 21. c4 {[%clk 0:01:21]}  g6 {[%clk 0:02:08]} 22. Kc3 {[%clk 0:01:17]}  f5 {[%clk 0:02:05]} 23. f3 {[%clk 0:01:11]}  Bd6 {[%clk 0:01:50]} 24. c5 {[%clk 0:01:10]}  Bb8 {[%clk 0:01:50]} 25. a3 {[%clk 0:01:09]}  Bb3 {[%clk 0:01:10]} 26. Bc2 {[%clk 0:01:04]}  Bxc2 {[%clk 0:01:10]} 27. Kxc2 {[%clk 0:01:04]}  fxe4 {[%clk 0:01:10]} 28. fxe4 {[%clk 0:01:04]}  Kf6 {[%clk 0:01:11]} 29. Bd8+ {[%clk 0:00:58]}  Ke6 {[%clk 0:01:07]} 30. Kc3 {[%clk 0:00:57]}  Kd7 {[%clk 0:00:52]} 31. Bb6 {[%clk 0:00:55]}  g5 {[%clk 0:00:26]} 32. g4 {[%clk 0:00:47]}  h6 {[%clk 0:00:19]} 33. Kb4 {[%clk 0:00:46]}  Bc7 {[%clk 0:00:17]} 34. Kxa4 {[%clk 0:00:13]}  Kc8 {[%clk 0:00:17]} 35. Ba5 {[%clk 0:00:09]}  Bxa5 {[%clk 0:00:14]} 36. Kxa5 {[%clk 0:00:10]}  Kb7 {[%clk 0:00:15]} 37. Kb4 {[%clk 0:00:05]}  Ka7 {[%clk 0:00:14]} 38. a4 {[%clk 0:00:05]}  Kb7 {[%clk 0:00:14]} 39. a5 {[%clk 0:00:05]}  Ka7 {[%clk 0:00:14]} 40. a6 {[%clk 0:00:01]}  Kxa6 {[%clk 0:00:12]} 41. Ka4 {[%clk 0:00:02]}  Kb7 {[%clk 0:00:13]} 42. Ka5 {[%clk 0:00:03]}  Ka7 {[%clk 0:00:13]} 43. Kb4 {[%clk 0:00:03]}  Kb7 {[%clk 0:00:12]} 44. Ka4 {[%clk 0:00:04]}  Ka7 {[%clk 0:00:12]} 45. Kb4 {[%clk 0:00:05]}  Kb7 {[%clk 0:00:12]} 46. Ka4 {[%clk 0:00:05]}  Ka7 {[%clk 0:00:13]} 47. Ka5 {[%clk 0:00:05]}  Kb7 {[%clk 0:00:14]} 48. Kb4 {[%clk 0:00:06]}  Ka7 {[%clk 0:00:14]} 49. Ka4 {[%clk 0:00:07]}  Kb7 {[%clk 0:00:14]} 50. Kb4 {[%clk 0:00:06]}  Ka7 {[%clk 0:00:14]} 51. Ka4 {[%clk 0:00:07]}  Kb7 {[%clk 0:00:15]} 1/2-1/2


[Site "https://www.chess.com"]

[Event "Titled Tuesday Blitz November 15 Late 2022"]
[White "Swiercz, Dariusz"]
[Black "Yoo, Christopher Woojin"]
[WhiteFideId "1126881"]
[BlackFideId "30909694"]
[WhiteElo "2627"]
[BlackElo "2463"]
[Result "1-0"]
[Round "11"]
[TimeControl "180+1"]
[Date "2022.11.15"]
[WhiteClock "0:00:05"]
[BlackClock "0:00:01"]

1. e4 {[%clk 0:03:00]}  Nf6 {[%clk 0:02:59]} 2. Nc3 {[%clk 0:03:00]}  e5 {[%clk 0:02:54]} 3. Nf3 {[%clk 0:03:01]}  Nc6 {[%clk 0:02:53]} 4. d4 {[%clk 0:03:00]}  exd4 {[%clk 0:02:53]} 5. Nxd4 {[%clk 0:03:01]}  Bb4 {[%clk 0:02:53]} 6. Nxc6 {[%clk 0:03:01]}  bxc6 {[%clk 0:02:53]} 7. Bd3 {[%clk 0:03:02]}  d5 {[%clk 0:02:53]} 8. exd5 {[%clk 0:03:00]}  O-O {[%clk 0:02:52]} 9. O-O {[%clk 0:03:00]}  cxd5 {[%clk 0:02:49]} 10. h3 {[%clk 0:03:00]}  c6 {[%clk 0:02:46]} 11. Qf3 {[%clk 0:02:59]}  Be6 {[%clk 0:02:37]} 12. Bf4 {[%clk 0:02:51]}  Re8 {[%clk 0:02:18]} 13. Rad1 {[%clk 0:02:38]}  a5 {[%clk 0:02:02]} 14. Ne2 {[%clk 0:02:24]}  Qb6 {[%clk 0:01:50]} 15. Nd4 {[%clk 0:02:13]}  Bd7 {[%clk 0:01:46]} 16. Nf5 {[%clk 0:01:52]}  Ne4 {[%clk 0:01:42]} 17. Ng3 {[%clk 0:01:31]}  Nxg3 {[%clk 0:01:13]} 18. Qxg3 {[%clk 0:01:25]}  Bf8 {[%clk 0:01:13]} 19. Be5 {[%clk 0:01:19]}  c5 {[%clk 0:01:10]} 20. b3 {[%clk 0:01:10]}  a4 {[%clk 0:00:49]} 21. Rfe1 {[%clk 0:01:10]}  axb3 {[%clk 0:00:48]} 22. axb3 {[%clk 0:01:11]}  d4 {[%clk 0:00:40]} 23. h4 {[%clk 0:01:02]}  Qh6 {[%clk 0:00:33]} 24. Bf4 {[%clk 0:00:59]}  Qh5 {[%clk 0:00:33]} 25. Qg5 {[%clk 0:00:42]}  Qxg5 {[%clk 0:00:31]} 26. hxg5 {[%clk 0:00:43]}  Rxe1+ {[%clk 0:00:24]} 27. Rxe1 {[%clk 0:00:44]}  Be6 {[%clk 0:00:24]} 28. Kf1 {[%clk 0:00:39]}  Rc8 {[%clk 0:00:19]} 29. Ra1 {[%clk 0:00:32]}  h6 {[%clk 0:00:17]} 30. gxh6 {[%clk 0:00:31]}  gxh6 {[%clk 0:00:18]} 31. Be5 {[%clk 0:00:22]}  Bg7 {[%clk 0:00:15]} 32. Bd6 {[%clk 0:00:20]}  c4 {[%clk 0:00:14]} 33. bxc4 {[%clk 0:00:20]}  Bxc4 {[%clk 0:00:15]} 34. Bf4 {[%clk 0:00:16]}  Bxd3+ {[%clk 0:00:10]} 35. cxd3 {[%clk 0:00:17]}  Kh7 {[%clk 0:00:10]} 36. Ke2 {[%clk 0:00:14]}  Kg6 {[%clk 0:00:10]} 37. Kf3 {[%clk 0:00:13]}  Rc3 {[%clk 0:00:05]} 38. Ra6+ {[%clk 0:00:10]}  Kh7 {[%clk 0:00:05]} 39. Ke4 {[%clk 0:00:09]}  Rc2 {[%clk 0:00:05]} 40. Bg3 {[%clk 0:00:09]}  Re2+ {[%clk 0:00:04]} 41. Kf3 {[%clk 0:00:08]}  Rd2 {[%clk 0:00:04]} 42. Ra3 {[%clk 0:00:08]}  Kg6 {[%clk 0:00:04]} 43. Ke4 {[%clk 0:00:08]}  f5+ {[%clk 0:00:04]} 44. Kf3 {[%clk 0:00:07]}  Bf6 {[%clk 0:00:03]} 45. Bf4 {[%clk 0:00:07]}  Rc2 {[%clk 0:00:03]} 46. Ra6 {[%clk 0:00:07]}  Kf7 {[%clk 0:00:02]} 47. Ra5 {[%clk 0:00:07]}  Ke6 {[%clk 0:00:02]} 48. Ra6+ {[%clk 0:00:06]}  Kf7 {[%clk 0:00:02]} 49. Bxh6 {[%clk 0:00:06]}  Rc3 {[%clk 0:00:03]} 50. Kf4 {[%clk 0:00:06]}  Rc5 {[%clk 0:00:01]} 51. Kf3 {[%clk 0:00:05]}  Be5 {[%clk 0:00:02]} 52. Bf4 {[%clk 0:00:04]}  Bf6 {[%clk 0:00:02]} 53. Bd2 {[%clk 0:00:04]}  Be5 {[%clk 0:00:02]} 54. g3 {[%clk 0:00:05]}  Rc2 {[%clk 0:00:02]} 55. Bf4 {[%clk 0:00:04]}  Bxf4 {[%clk 0:00:02]} 56. gxf4 {[%clk 0:00:03]}  Rd2 {[%clk 0:00:02]} 57. Ra3 {[%clk 0:00:03]}  Ke6 {[%clk 0:00:02]} 58. Rb3 {[%clk 0:00:04]}  Kd6 {[%clk 0:00:02]} 59. Ra3 {[%clk 0:00:04]}  Kc5 {[%clk 0:00:02]} 60. Ra5+ {[%clk 0:00:04]}  Kb4 {[%clk 0:00:02]} 61. Rxf5 {[%clk 0:00:05]}  Rxd3+ {[%clk 0:00:03]} 62. Ke4 {[%clk 0:00:06]}  Rd1 {[%clk 0:00:02]} 63. Rf8 {[%clk 0:00:05]}  Kc4 {[%clk 0:00:01]} 64. Rc8+ {[%clk 0:00:05]}  Kb3 {[%clk 0:00:01]} 65. f5 {[%clk 0:00:06]}  d3 {[%clk 0:00:01]} 66. Ke3 {[%clk 0:00:05]}  d2 {[%clk 0:00:01]} 67. Ke2 {[%clk 0:00:05]}  Rf1 {[%clk 0:00:02]} 68. Rd8 {[%clk 0:00:05]}  Kc3 {[%clk 0:00:01]} 69. Kxf1 {[%clk 0:00:05]} 1-0


[Site "https://www.chess.com"]

[Event "Titled Tuesday Blitz November 15 Late 2022"]
[White "Thiel, Thomas"]
[Black "Espinosa, Pedro"]
[WhiteFideId "4615964"]
[BlackFideId "30921066"]
[WhiteElo "2238"]
[BlackElo "2016"]
[Result "0-1"]
[Round "11"]
[TimeControl "180+1"]
[Date "2022.11.16"]
[WhiteClock "0:01:37"]
[BlackClock "0:01:21"]

1. e4 {[%clk 0:03:00]}  c5 {[%clk 0:02:53]} 2. Nc3 {[%clk 0:02:56]}  Nc6 {[%clk 0:02:52]} 3. Bb5 {[%clk 0:02:54]}  Nd4 {[%clk 0:02:52]} 4. Bc4 {[%clk 0:02:54]}  a6 {[%clk 0:02:51]} 5. d3 {[%clk 0:02:49]}  b5 {[%clk 0:02:51]} 6. Bb3 {[%clk 0:02:48]}  Bb7 {[%clk 0:02:48]} 7. Nge2 {[%clk 0:02:48]}  Nxb3 {[%clk 0:02:46]} 8. axb3 {[%clk 0:02:47]}  e6 {[%clk 0:02:47]} 9. O-O {[%clk 0:02:45]}  d5 {[%clk 0:02:47]} 10. exd5 {[%clk 0:02:43]}  exd5 {[%clk 0:02:47]} 11. d4 {[%clk 0:02:40]}  Nf6 {[%clk 0:02:44]} 12. Bg5 {[%clk 0:02:38]}  Be7 {[%clk 0:02:44]} 13. Nf4 {[%clk 0:02:35]}  O-O {[%clk 0:02:43]} 14. Re1 {[%clk 0:02:33]}  h6 {[%clk 0:02:41]} 15. Bxf6 {[%clk 0:02:26]}  Bxf6 {[%clk 0:02:41]} 16. dxc5 {[%clk 0:02:24]}  d4 {[%clk 0:02:13]} 17. Ne4 {[%clk 0:02:22]}  Be5 {[%clk 0:02:10]} 18. Qg4 {[%clk 0:02:17]}  f5 {[%clk 0:01:44]} 19. Qg6 {[%clk 0:02:15]}  Bxf4 {[%clk 0:01:35]} 20. Qe6+ {[%clk 0:01:41]}  Kh8 {[%clk 0:01:33]} 21. Nd6 {[%clk 0:01:39]}  Bxd6 {[%clk 0:01:31]} 22. cxd6 {[%clk 0:01:40]}  Qg5 {[%clk 0:01:25]} 23. g3 {[%clk 0:01:37]}  Qg4 {[%clk 0:01:21]} 0-1


[Site "https://www.chess.com"]